bitfinex/quotes_BTCUSD_20220103
["timestamp","ask_amount","ask_price","bid_price","bid_amount"]
[1641219469135,0.002,47049.0,47048.0,0.68808947]
[1641219469336,0.002,47049.0,47048.0,0.440088]
[1641219471737,0.002,47049.0,47048.0,0.92892778]
[1641219471937,0.002,47049.0,47048.0,2.04992778]
[1641219472137,0.002,47049.0,47048.0,2.40507995]
[1641219472401,0.002,47049.0,47048.0,1.28407995]
[1641219472601,0.002,47049.0,47048.0,1.43407995]
[1641219473203,0.002,47049.0,47048.0,0.97932082]
[1641219474104,0.002,47049.0,47048.0,0.440088]
[1641219475602,0.002,47049.0,47048.0,0.397588]
[1641219475803,0.002,47049.0,47048.0,0.053124]
[1641219476441,0.002,47049.0,47044.0,0.106269]
[1641219476645,0.002,47049.0,47036.0,0.106286]
[1641219476646,0.05314,47048.0,47036.0,0.106286]
[1641219476840,0.05330432,47048.0,47037.0,0.344547]
[1641219477039,0.05330432,47048.0,47036.0,0.106286]
[1641219477240,0.05330432,47048.0,47037.0,0.19925281]
[1641219477444,0.05314148,47045.0,47037.0,0.19925281]
[1641219477645,0.05330432,47048.0,47040.0,0.053144]
[1641219477844,9.129e-05,47044.0,47040.0,0.053144]
[1641219478042,0.053142,47043.0,47040.0,0.053144]
[1641219478242,0.05321504,47043.0,47040.0,0.053144]
[1641219478441,0.053142,47043.0,47040.0,0.053144]
[1641219478841,0.10628495,47043.0,47040.0,0.053144]
[1641219479148,0.10628495,47043.0,47036.0,0.106286]
[1641219479149,0.053142,47043.0,47036.0,0.106286]
[1641219480584,0.05314832,47040.0,47036.0,0.106286]
[1641219480784,0.053149,47038.0,47035.0,0.00122662]
[1641219480986,0.106298,47039.0,47028.0,0.00142462]
[1641219481185,0.29559773,47043.0,47028.0,0.00142462]
[1641219481389,0.29559773,47043.0,47029.0,0.00018257]
[1641219481584,0.164152,47044.0,47032.0,0.08871692]
[1641219481585,0.053151,47042.0,47032.0,0.08871692]
[1641219481789,0.05314646,47041.0,47032.0,0.08871692]
[1641219481987,7.304e-05,47043.0,47037.0,0.053147]
[1641219482188,0.053148,47041.0,47033.0,0.10640154]
[1641219482385,0.053148,47041.0,47033.0,0.106292]
[1641219482587,0.053148,47041.0,47034.0,0.31099868]
[1641219482788,0.053148,47041.0,47034.0,0.05009129]
[1641219482987,0.053148,47041.0,47035.0,0.00568406]
[1641219483187,0.053148,47041.0,47036.0,0.00685873]
[1641219483387,0.053148,47041.0,47037.0,0.00621575]
[1641219483653,0.053148,47041.0,47035.0,7.303e-05]
[1641219483852,0.10629151,47041.0,47035.0,7.303e-05]
[1641219484056,0.10629151,47041.0,47035.0,0.00660286]
[1641219484254,0.053148,47041.0,47037.0,0.053144]
[1641219484457,0.053148,47041.0,47037.0,0.0582032]
[1641219484653,0.053148,47041.0,47038.0,0.00662185]
[1641219484853,0.053148,47041.0,47036.0,0.16361216]
[1641219485053,0.053148,47041.0,47036.0,0.156283]
[1641219485255,0.053148,47041.0,47039.0,0.053142]
[1641219485855,0.053148,47041.0,47036.0,0.05]
[1641219486058,0.10629206,47041.0,47035.0,7.303e-05]
[1641219486254,0.053148,47041.0,47036.0,0.053146]
[1641219486654,0.053148,47041.0,47036.0,0.05814747]
[1641219486854,0.053148,47041.0,47035.0,7.303e-05]
[1641219487297,0.053148,47041.0,47037.0,0.053145]
[1641219488497,0.053148,47041.0,47035.0,7.303e-05]
[1641219489702,0.05314753,47038.0,47035.0,0.05322103]
[1641219489898,0.05315,47037.0,47035.0,0.05322103]
[1641219490902,0.05315,47037.0,47036.0,0.3013821]
[1641219491157,0.05314,47042.0,47038.0,0.05314]
[1641219491352,0.05314,47042.0,47038.0,0.05983773]
[1641219491550,0.05314,47042.0,47039.0,0.00642114]
[1641219491750,0.05314,47042.0,47036.0,0.31320704]
[1641219491951,0.05314,47042.0,47037.0,0.06009677]
[1641219492151,0.05314,47042.0,47037.0,0.106279]
[1641219492951,0.05314,47042.0,47038.0,0.00622064]
[1641219493152,0.05314,47042.0,47037.0,0.106279]
[1641219493352,0.05314,47042.0,47039.0,0.053139]
[1641219493754,0.05314,47042.0,47036.0,0.0073779]
[1641219493951,0.05314,47042.0,47035.0,0.00694515]
[1641219494153,0.05314,47042.0,47035.0,7.303e-05]
[1641219494785,0.05314,47042.0,47036.0,0.00638333]
[1641219494988,0.05314,47042.0,47038.0,0.053143]
[1641219495887,0.05314,47042.0,47035.0,0.00766817]
[1641219496085,0.05314,47042.0,47035.0,7.303e-05]
[1641219496086,0.35842703,47042.0,47035.0,7.303e-05]
[1641219496486,0.05315,47038.0,47035.0,7.303e-05]
[1641219496686,0.1063,47039.0,47035.0,7.303e-05]
[1641219496890,0.505449,47038.0,47031.0,0.00014606]
[1641219497086,0.505449,47038.0,47023.0,0.106312]
[1641219497087,0.159476,47038.0,47029.0,0.00018257]
[1641219497286,0.159476,47038.0,47024.0,0.00027386]
[1641219497490,0.05315794,47032.0,47026.0,0.053158]
[1641219497687,0.159476,47038.0,47027.0,0.344638]
[1641219497688,0.053161,47029.0,47027.0,0.344638]
[1641219497888,0.29316161,47041.0,47027.0,0.344638]
[1641219497889,0.33132968,47040.0,47028.0,0.344638]
[1641219498188,0.33132968,47040.0,47029.0,0.00018257]
[1641219498387,0.33132968,47040.0,47031.0,0.053153]
[1641219498649,0.053151,47034.0,47030.0,0.00575585]
[1641219498952,0.106302,47036.0,47032.0,0.0001278]
[1641219499147,0.106302,47036.0,47031.0,0.00014606]
[1641219499348,0.106302,47036.0,47033.0,0.00010954]
[1641219499550,0.106302,47036.0,47029.0,0.106299]
[1641219499551,0.08947344,47036.0,47029.0,0.11306575]
[1641219499748,0.08947344,47036.0,47033.0,0.053151]
[1641219500154,0.08947344,47036.0,47034.0,9.129e-05]
[1641219503294,0.05315,47037.0,47034.0,9.129e-05]
[1641219503495,0.05315,47037.0,47034.0,0.00622886]
[1641219503496,0.05315,47036.0,47034.0,0.00622886]
[1641219503898,0.05315,47036.0,47035.0,7.303e-05]
[1641219504296,0.05315,47036.0,47034.0,9.129e-05]
[1641219504495,0.05315,47036.0,47035.0,7.303e-05]
[1641219504698,0.05315,47036.0,47034.0,0.00527508]
[1641219504898,0.05315,47036.0,47034.0,0.00633749]
[1641219505099,0.05315,47036.0,47035.0,7.303e-05]
[1641219507855,0.05315,47037.0,47035.0,7.303e-05]
[1641219509795,0.05315,47037.0,47035.0,0.05322403]
[1641219511599,0.05315,47037.0,47035.0,0.10637403]
[1641219512000,0.05315,47037.0,47035.0,7.303e-05]
[1641219512001,0.35289427,47037.0,47035.0,7.303e-05]
[1641219512202,0.31806531,47036.0,47035.0,7.303e-05]
[1641219512401,1.01206811,47036.0,47035.0,7.303e-05]
[1641219512603,1.35804111,47036.0,47035.0,7.303e-05]
[1641219512802,1.35804111,47036.0,47031.0,0.00014606]
[1641219512803,0.19722439,47035.0,47031.0,0.00014606]
[1641219513104,0.19722439,47035.0,47021.0,0.00032864]
[1641219513105,0.053169,47031.0,47021.0,0.00032864]
[1641219513564,0.29548903,47031.0,47021.0,0.00032864]
[1641219513856,0.05316949,47027.0,47021.0,0.00032864]
[1641219514057,0.053171,47025.0,47021.0,0.00032864]
[1641219514257,0.106342,47026.0,47021.0,0.00032864]
[1641219514861,0.58415263,47032.0,47021.0,0.05349364]
[1641219515060,0.58415263,47032.0,47023.0,0.26813163]
[1641219515061,0.053159,47026.0,47023.0,0.26813163]
[1641219515459,0.053159,47026.0,47024.0,0.00027386]
[1641219515959,0.106319,47029.0,47024.0,0.00787187]
[1641219516159,0.106319,47029.0,47026.0,0.053158]
[1641219516560,0.106319,47029.0,47027.0,0.00021909]
[1641219517161,0.106319,47029.0,47027.0,0.05337709]
[1641219517393,0.106319,47029.0,47027.0,0.053158]
[1641219517594,0.106319,47029.0,47028.0,0.00020083]
[1641219519196,0.106319,47029.0,47027.0,0.04835883]
[1641219519398,0.056319,47029.0,47027.0,0.04835883]
[1641219519996,0.053156,47029.0,47027.0,0.04835883]
[1641219520195,0.106311,47033.0,47027.0,0.04835883]
[1641219520597,7.303e-05,47032.0,47027.0,0.04835883]
[1641219521355,0.053155,47029.0,47027.0,0.04835883]
[1641219521554,0.053155,47029.0,47028.0,0.053155]
[1641219522558,0.053155,47029.0,47027.0,0.04835883]
[1641219522758,0.053155,47029.0,47028.0,0.344643]
[1641219525496,7.303e-05,47032.0,47028.0,0.9880568]
[1641219525692,7.303e-05,47032.0,47031.0,0.344613]
[1641219525893,7.303e-05,47032.0,47031.0,2.1956802]
[1641219526291,7.303e-05,47032.0,47031.0,2.2456802]
[1641219531640,7.303e-05,47032.0,47031.0,0.787113]
[1641219532038,7.303e-05,47032.0,47031.0,1.08637276]
[1641219533098,7.303e-05,47032.0,47031.0,2.20737276]
[1641219533299,7.303e-05,47032.0,47031.0,1.08637276]
[1641219533903,7.303e-05,47032.0,47031.0,2.20737276]
[1641219535102,7.303e-05,47032.0,47031.0,2.29239864]
[1641219535302,7.303e-05,47032.0,47031.0,2.20737276]
[1641219535602,7.303e-05,47032.0,47031.0,1.08637276]
[1641219536951,7.303e-05,47032.0,47031.0,0.787113]
[1641219537651,7.303e-05,47032.0,47031.0,1.08957087]
[1641219538057,7.303e-05,47032.0,47031.0,2.26057087]
[1641219539455,7.303e-05,47032.0,47031.0,2.36057087]
[1641219540901,7.303e-05,47032.0,47031.0,2.31057087]
[1641219542101,0.05314,47046.0,47041.0,0.11005811]
[1641219542102,0.03647635,47046.0,47041.0,0.11005811]
[1641219542302,0.03647635,47046.0,47043.0,0.05314]
[1641219543103,0.58615263,47049.0,47043.0,0.05314]
[1641219543304,0.053138,47048.0,47043.0,0.04814]
[1641219543566,0.05343012,47048.0,47043.0,0.04814]
[1641219544156,0.00029212,47048.0,47045.0,0.03188052]
[1641219544360,0.00029212,47048.0,47046.0,0.053132]
[1641219544956,0.00029212,47048.0,47046.0,0.05918414]
[1641219545158,0.00029212,47048.0,47047.0,0.00734866]
[1641219545357,0.00029212,47048.0,47047.0,0.87238869]
[1641219545556,0.00029212,47048.0,47047.0,0.39574742]
[1641219545957,0.00029212,47048.0,47047.0,0.43824742]
[1641219546160,0.00029212,47048.0,47047.0,0.78824742]
[1641219546458,0.00029212,47048.0,47047.0,1.08542809]
[1641219547323,0.00029212,47048.0,47047.0,2.20642809]
[1641219547518,9.212e-05,47049.0,47048.0,1.518587]
[1641219547718,9.212e-05,47049.0,47048.0,1.561087]
[1641219547918,9.212e-05,47049.0,47048.0,1.611087]
[1641219548117,9.212e-05,47049.0,47048.0,1.84505722]
[1641219548315,9.212e-05,47049.0,47048.0,1.99505722]
[1641219548717,9.212e-05,47049.0,47048.0,2.09505722]
[1641219548718,0.00015718,47049.0,47048.0,2.09505722]
[1641219549420,0.00015718,47049.0,47048.0,2.19756544]
[1641219550423,0.00015718,47049.0,47048.0,2.04756544]
[1641219550622,0.01,47054.0,47052.0,1.15286846]
[1641219550824,0.01,47054.0,47053.0,1.83332376]
[1641219551075,0.01,47054.0,47053.0,1.98332376]
[1641219551260,0.01,47054.0,47053.0,2.08332376]
[1641219551663,0.01,47054.0,47053.0,2.28643876]
[1641219551970,0.002,47059.0,47056.0,0.43099578]
[1641219552163,0.002,47059.0,47058.0,1.26145276]
[1641219552363,0.002,47059.0,47058.0,2.47580778]
[1641219552565,0.00825171,47063.0,47060.0,1.121]
[1641219552762,0.00825171,47063.0,47062.0,2.335344]
[1641219552980,0.1311996,47080.0,47063.0,1.36825171]
[1641219553164,1.1106,47082.0,47071.0,0.00120406]
[1641219553165,0.42,47072.0,47071.0,0.00120406]
[1641219553363,1.1106,47082.0,47071.0,0.00120406]
[1641219553364,0.00018258,47078.0,47071.0,0.04370406]
[1641219553764,0.00016432,47077.0,47074.0,0.053098]
[1641219553964,0.00016432,47077.0,47075.0,0.0425]
[1641219554165,0.00014606,47076.0,47075.0,0.0425]
[1641219555611,0.00014606,47076.0,47075.0,0.00679793]
[1641219555811,0.053113,47072.0,47067.0,0.04852435]
[1641219556015,0.053113,47072.0,47063.0,0.04133299]
[1641219556016,0.053113,47072.0,47068.0,0.35151821]
[1641219556410,0.053113,47072.0,47069.0,0.00789673]
[1641219556611,0.053113,47072.0,47070.0,0.34988562]
[1641219556814,0.053113,47072.0,47071.0,0.00541684]
[1641219557011,0.053113,47072.0,47071.0,0.344265]
[1641219557213,0.05318603,47072.0,47071.0,0.0070075]
[1641219557410,0.05318603,47072.0,47066.0,0.31544066]
[1641219557613,7.303e-05,47072.0,47067.0,0.35069605]
[1641219557812,7.303e-05,47072.0,47068.0,0.053111]
[1641219558013,7.303e-05,47072.0,47069.0,0.394281]
[1641219558211,7.303e-05,47072.0,47069.0,0.39963884]
[1641219558411,7.303e-05,47072.0,47070.0,0.00706046]
[1641219558648,7.303e-05,47072.0,47071.0,0.35106837]
[1641219558846,7.303e-05,47072.0,47071.0,0.394265]
[1641219559646,7.303e-05,47072.0,47071.0,0.444265]
[1641219560247,7.303e-05,47072.0,47071.0,0.394265]
[1641219560448,7.303e-05,47072.0,47071.0,0.444265]
[1641219561247,7.303e-05,47072.0,47071.0,0.394265]
[1641219562905,7.303e-05,47072.0,47071.0,0.344265]
[1641219563707,7.303e-05,47072.0,47071.0,0.394265]
[1641219564307,7.303e-05,47072.0,47071.0,0.444265]
[1641219564507,7.303e-05,47072.0,47071.0,0.77296038]
[1641219564715,7.303e-05,47072.0,47071.0,1.1667066]
[1641219564908,7.303e-05,47072.0,47071.0,0.83801122]
[1641219565408,7.303e-05,47072.0,47071.0,0.92296126]
[1641219565610,7.303e-05,47072.0,47071.0,2.05901122]
[1641219566074,7.303e-05,47072.0,47071.0,0.93801122]
[1641219566868,7.303e-05,47072.0,47071.0,1.23488014]
[1641219567067,7.303e-05,47072.0,47071.0,1.38488014]
[1641219568768,7.303e-05,47072.0,47071.0,0.93488014]
[1641219568970,7.303e-05,47072.0,47071.0,0.63601122]
[1641219569170,7.303e-05,47072.0,47071.0,0.93866832]
[1641219570203,7.303e-05,47072.0,47071.0,0.63601122]
[1641219570802,7.303e-05,47072.0,47071.0,2.05675337]
[1641219571400,7.303e-05,47072.0,47071.0,2.15675337]
[1641219571601,7.303e-05,47072.0,47071.0,0.63601122]
[1641219575354,7.303e-05,47072.0,47071.0,0.48341122]
[1641219575751,0.05628303,47082.0,47071.0,0.48341122]
[1641219575950,0.05628303,47082.0,47075.0,0.053104]
[1641219576151,0.00016432,47081.0,47075.0,0.053104]
[1641219576652,0.05324907,47080.0,47075.0,0.053104]
[1641219577505,0.00012781,47079.0,47075.0,0.053104]
[1641219578107,0.00010955,47078.0,47075.0,0.053104]
[1641219578904,9.129e-05,47077.0,47076.0,0.053101]
[1641219579104,9.129e-05,47077.0,47076.0,0.06033113]
[1641219579306,9.129e-05,47077.0,47076.0,0.053101]
[1641219580505,9.129e-05,47077.0,47076.0,0.397322]
[1641219584553,9.129e-05,47077.0,47076.0,0.497322]
[1641219586817,9.129e-05,47077.0,47076.0,0.397322]
[1641219587020,9.129e-05,47077.0,47076.0,0.497322]
[1641219587821,9.129e-05,47077.0,47076.0,0.397322]
[1641219591652,9.129e-05,47077.0,47076.0,0.053101]
[1641219596964,9.129e-05,47077.0,47076.0,0.103101]
[1641219599367,9.129e-05,47077.0,47076.0,0.095675]
[1641219600820,9.129e-05,47077.0,47076.0,0.053101]
[1641219603954,9.129e-05,47077.0,47076.0,0.38247681]
[1641219605754,9.129e-05,47077.0,47076.0,0.43247681]
[1641219606856,0.59287766,47083.0,47079.0,0.053098]
[1641219607060,0.59278638,47083.0,47079.0,0.053098]
[1641219607717,0.59278638,47083.0,47081.0,0.21409093]
[1641219607917,0.01,47084.0,47082.0,0.053096]
[1641219608818,0.00010955,47083.0,47082.0,0.053096]
[1641219609617,0.00010955,47083.0,47082.0,0.06083955]
[1641219610321,0.00010955,47083.0,47082.0,0.053096]
[1641219610518,0.01,47084.0,47082.0,0.053096]
[1641219610519,0.00510955,47084.0,47082.0,0.053096]
[1641219611366,0.00510955,47084.0,47082.0,0.38095091]
[1641219611564,0.00510955,47084.0,47082.0,0.43404491]
[1641219613771,0.00510955,47084.0,47083.0,0.32879744]
[1641219614170,0.00510955,47084.0,47083.0,0.0012434]
[1641219615208,0.00510955,47084.0,47083.0,0.3454124]
[1641219616008,0.00510955,47084.0,47083.0,0.66076458]
[1641219616605,0.00510955,47084.0,47083.0,0.87076458]
[1641219616909,0.00510955,47084.0,47083.0,0.91326458]
[1641219618561,0.00510955,47084.0,47083.0,0.5979124]
[1641219618758,0.00510955,47084.0,47083.0,0.554169]
[1641219619256,0.00510955,47084.0,47083.0,0.21]
[1641219620258,0.00510955,47084.0,47083.0,0.21549213]
[1641219620457,0.00582499,47084.0,47083.0,0.21]
[1641219621061,0.00582499,47084.0,47083.0,0.26]
[1641219623703,0.00582499,47084.0,47083.0,0.305]
[1641219623906,0.45179799,47084.0,47083.0,0.21]
[1641219624207,1.06445818,47084.0,47083.0,0.21]
[1641219624609,2.24529934,47084.0,47083.0,0.21]
[1641219625205,2.59529934,47084.0,47083.0,0.0001]
[1641219625406,0.10624,47079.0,47070.0,0.05312]
[1641219625605,0.10624,47079.0,47068.0,0.053119]
[1641219625804,0.10624,47079.0,47074.0,0.00016432]
[1641219626070,1.03924413,47078.0,47074.0,0.00016432]
[1641219626259,1.37188242,47078.0,47074.0,0.00016432]
[1641219626459,0.59327113,47077.0,47074.0,0.00016432]
[1641219626659,0.053119,47076.0,47074.0,0.00016432]
[1641219626859,0.30975209,47075.0,47074.0,0.00016432]
[1641219627262,0.30975209,47075.0,47072.0,0.00020084]
[1641219628260,0.59327113,47077.0,47072.0,0.00020084]
[1641219628461,0.59327113,47077.0,47072.0,0.05331784]
[1641219628659,0.59327113,47077.0,47072.0,0.10331784]
[1641219628860,0.59327113,47077.0,47073.0,0.00018258]
[1641219629261,0.90510171,47078.0,47073.0,0.00018258]
[1641219629460,0.90510171,47078.0,47072.0,0.00020084]
[1641219630121,0.59327113,47078.0,47073.0,0.03186824]
[1641219630416,0.59327113,47078.0,47072.0,0.05020084]
[1641219630417,0.00071544,47075.0,47072.0,0.05020084]
[1641219630815,0.00071544,47075.0,47074.0,0.00726831]
[1641219631015,0.00071544,47075.0,47073.0,0.00018258]
[1641219631217,0.00071544,47075.0,47074.0,0.26552941]
[1641219631416,0.00071544,47075.0,47074.0,0.36368771]
[1641219631616,0.00071544,47075.0,47074.0,0.46368771]
[1641219632015,0.00071544,47075.0,47074.0,0.41863441]
[1641219632215,0.00071544,47075.0,47074.0,0.47174241]
[1641219632917,0.00071544,47075.0,47074.0,0.81598041]
[1641219633115,0.00071544,47075.0,47074.0,1.11014492]
[1641219633581,0.00071544,47075.0,47074.0,1.11141977]
[1641219634177,0.00071544,47075.0,47074.0,1.15391977]
[1641219634374,0.00071544,47075.0,47074.0,2.42491977]
[1641219634572,0.00071544,47075.0,47074.0,2.52491977]
[1641219634772,0.00510955,47084.0,47081.0,0.0012727]
[1641219634976,0.00510955,47084.0,47082.0,0.17041421]
[1641219635174,0.00510955,47084.0,47083.0,0.23177431]
[1641219635372,0.00510955,47084.0,47083.0,0.69729395]
[1641219635973,0.59327113,47088.0,47083.0,0.69729395]
[1641219636173,0.59327113,47088.0,47085.0,0.053088]
[1641219636374,0.422,47089.0,47085.0,0.053088]
[1641219636573,7.303e-05,47087.0,47085.0,0.103088]
[1641219637072,7.303e-05,47087.0,47085.0,0.153088]
[1641219637510,7.303e-05,47087.0,47086.0,0.106176]
[1641219637905,7.303e-05,47087.0,47086.0,0.156176]
[1641219641269,7.303e-05,47087.0,47086.0,0.500315]
[1641219645019,0.25007303,47087.0,47086.0,0.710315]
[1641219645220,0.25007303,47087.0,47086.0,0.366176]
[1641219651567,0.25007303,47087.0,47086.0,0.56962569]
[1641219653024,7.303e-05,47087.0,47086.0,0.56962569]
[1641219654125,7.303e-05,47087.0,47086.0,0.366176]
[1641219655931,7.303e-05,47087.0,47086.0,0.296176]
[1641219657373,7.303e-05,47087.0,47086.0,0.349264]
[1641219661215,7.303e-05,47087.0,47086.0,0.299264]
[1641219662818,7.303e-05,47087.0,47082.0,0.00823985]
[1641219662819,1.63,47086.0,47082.0,0.00823985]
[1641219663014,0.388473,47085.0,47082.0,0.00823985]
[1641219663414,0.15443474,47084.0,47082.0,0.00823985]
[1641219663677,0.67120448,47083.0,47082.0,0.00823985]
[1641219663873,0.59934747,47083.0,47082.0,0.00823985]
[1641219664072,0.388473,47083.0,47082.0,0.00823985]
[1641219664272,0.388473,47083.0,47081.0,0.03186626]
[1641219664773,1.10039836,47083.0,47081.0,0.03186626]
[1641219665071,1.03727092,47082.0,47081.0,0.03186626]
[1641219665272,1.42574392,47082.0,47081.0,0.03186626]
[1641219665471,1.42574392,47082.0,47081.0,0.24186626]
[1641219665873,1.42574392,47082.0,47081.0,0.29186626]
[1641219666274,1.42574392,47082.0,47081.0,0.24186626]
[1641219667909,1.42574392,47082.0,47081.0,0.34186626]
[1641219668711,0.32534556,47082.0,47081.0,0.31]
[1641219669714,0.053104,47086.0,47081.0,0.31]
[1641219670011,0.32594767,47087.0,47083.0,0.106201]
[1641219670412,0.32594767,47087.0,47083.0,0.156201]
[1641219671086,0.32594767,47087.0,47083.0,0.16404679]
[1641219671274,0.32594767,47087.0,47084.0,0.053101]
[1641219671475,0.32594767,47087.0,47084.0,0.156205]
[1641219671673,0.37905167,47087.0,47084.0,0.18806505]
[1641219671873,0.32594767,47087.0,47084.0,0.103104]
[1641219672073,0.32594767,47087.0,47085.0,0.00787061]
[1641219672275,0.32594767,47087.0,47084.0,0.103104]
[1641219672676,0.32594767,47087.0,47085.0,0.00598405]
[1641219672875,0.345973,47086.0,47085.0,0.00598405]
[1641219673473,0.345973,47086.0,47085.0,0.05908805]
[1641219673873,0.345973,47086.0,47085.0,0.053104]
[1641219677027,0.345973,47086.0,47085.0,0.103104]
[1641219680675,0.345973,47086.0,47085.0,0.053104]
[1641219683923,0.345973,47086.0,47085.0,0.05962067]
[1641219684124,0.345973,47086.0,47085.0,0.053104]
[1641219686287,1.17655259,47086.0,47085.0,0.053104]
[1641219695989,1.4619026,47086.0,47085.0,0.053104]
[1641219696792,0.67382301,47086.0,47085.0,0.053104]
[1641219696991,0.67382301,47086.0,47081.0,0.21]
[1641219696992,0.2,47085.0,47081.0,0.21]
[1641219697194,2.27721597,47082.0,47081.0,0.0001]
[1641219697428,2.90141597,47082.0,47081.0,0.0001]
[1641219697632,3.00141597,47082.0,47081.0,0.0001]
[1641219697826,1.89666158,47073.0,47072.0,0.00823987]
[1641219698032,0.67513458,47073.0,47072.0,0.00823987]
[1641219698329,0.72825958,47073.0,47072.0,0.00020084]
[1641219698530,1.44618028,47073.0,47072.0,0.00020084]
[1641219699129,0.441598,47073.0,47072.0,0.00020084]
[1641219699331,0.74562083,47073.0,47072.0,0.00020084]
[1641219702572,1.58319497,47073.0,47072.0,0.00020084]
[1641219703871,0.00184116,47072.0,47071.0,0.209368]
[1641219704173,0.34781416,47072.0,47071.0,0.209368]
[1641219704573,0.63637196,47072.0,47071.0,0.209368]
[1641219706025,0.34781416,47072.0,47071.0,0.209368]
[1641219706825,1.06577961,47072.0,47071.0,0.209368]
[1641219707025,1.06577961,47072.0,47071.0,0.419368]
[1641219707426,0.71980661,47072.0,47071.0,0.419368]
[1641219707825,0.71980661,47072.0,47071.0,0.469368]
[1641219708226,0.71980661,47072.0,47071.0,0.259368]
[1641219708429,0.00184116,47072.0,47071.0,0.259368]
[1641219709071,0.00184116,47072.0,47071.0,0.56136012]
[1641219709670,0.29498361,47074.0,47071.0,0.56136012]
[1641219710077,0.59860085,47075.0,47072.0,0.08186179]
[1641219710274,0.17377285,47080.0,47074.0,0.09139292]
[1641219710472,0.17377285,47080.0,47075.0,0.106208]
[1641219710680,0.17377285,47080.0,47076.0,0.053104]
[1641219710871,0.17377285,47080.0,47079.0,0.29559145]
[1641219711072,0.17377285,47080.0,47079.0,0.34559145]
[1641219711271,0.17391892,47080.0,47079.0,0.39559145]
[1641219712073,0.17391892,47080.0,47079.0,0.62101146]
[1641219713529,0.00014607,47080.0,47079.0,0.62101146]
[1641219713928,0.00014607,47080.0,47079.0,0.32542001]
[1641219715330,0.00014607,47080.0,47079.0,0.1]
[1641219718265,0.34611907,47080.0,47079.0,0.1]
[1641219718663,0.00014607,47080.0,47079.0,0.1]
[1641219719664,0.60112322,47080.0,47079.0,0.1]
[1641219721130,0.94709622,47080.0,47079.0,0.1]
[1641219721328,0.60112322,47080.0,47079.0,0.1]
[1641219722127,0.59612322,47080.0,47079.0,0.1]
[1641219722731,0.59542923,47080.0,47079.0,0.1]
[1641219724270,0.94140223,47080.0,47079.0,0.1]
[1641219725072,0.92708436,47080.0,47079.0,0.1]
[1641219728934,0.92708436,47080.0,47079.0,0.305]
[1641219730936,0.57990694,47080.0,47079.0,0.305]
[1641219731168,0.72112592,47081.0,47079.0,0.305]
[1641219731371,0.72112592,47081.0,47080.0,0.03186482]
[1641219731570,1.06709892,47081.0,47080.0,0.03186482]
[1641219734569,0.72112592,47081.0,47080.0,0.03186482]
[1641219738974,0.72112592,47081.0,47080.0,0.12604129]
[1641219739378,0.72112592,47081.0,47080.0,0.22604129]
[1641219739576,0.72112592,47081.0,47080.0,0.13186482]
[1641219739776,1.06709892,47081.0,47080.0,0.13186482]
[1641219741376,0.345973,47081.0,47080.0,0.13186482]
[1641219741979,1.06709892,47081.0,47080.0,0.13186482]
[1641219745223,0.91506518,47081.0,47080.0,0.13186482]
[1641219745823,0.89098225,47081.0,47080.0,0.13186482]
[1641219746269,0.16985633,47081.0,47080.0,0.13186482]
[1641219746669,0.72112592,47082.0,47080.0,0.13186482]
[1641219746870,0.72112592,47082.0,47080.0,0.18496982]
[1641219747471,0.60160359,47082.0,47080.0,0.18496982]
[1641219749272,0.60160359,47081.0,47080.0,0.18496982]
[1641219749469,0.60160359,47081.0,47080.0,0.13186482]
[1641219752333,0.60160359,47082.0,47080.0,0.13186482]
[1641219756676,0.60160359,47082.0,47081.0,0.28771257]
[1641219757074,0.57752118,47082.0,47081.0,0.38771257]
[1641219757330,7.303e-05,47084.0,47082.0,0.053093]
[1641219757529,7.303e-05,47084.0,47083.0,0.4290908]
[1641219758730,7.303e-05,47084.0,47083.0,0.4821838]
[1641219758933,7.303e-05,47084.0,47083.0,0.8279998]
[1641219759531,0.002,47089.0,47088.0,0.23767188]
[1641219759532,0.00091848,47089.0,47088.0,0.23767188]
[1641219759732,0.00091848,47089.0,47088.0,0.48637572]
[1641219759931,0.00091848,47089.0,47088.0,0.58759076]
[1641219760132,0.00091848,47089.0,47088.0,0.92868823]
[1641219760335,0.00091848,47089.0,47088.0,1.27450423]
[1641219762884,0.00091848,47089.0,47088.0,1.30660114]
[1641219763081,0.00091848,47089.0,47088.0,0.98649676]
[1641219765137,0.00091848,47089.0,47088.0,1.28485421]
[1641219765538,0.00091848,47089.0,47088.0,0.98649676]
[1641219765738,0.00091848,47089.0,47088.0,1.33649676]
[1641219766136,0.002,47099.0,47097.0,0.00127399]
[1641219766337,0.002,47099.0,47098.0,0.08936155]
[1641219766537,0.002,47099.0,47098.0,0.18936155]
[1641219768773,0.002,47099.0,47098.0,0.24243955]
[1641219769575,0.002,47099.0,47098.0,0.153078]
[1641219769776,0.417,47105.0,47101.0,0.05308]
[1641219769977,0.417,47105.0,47102.0,0.02653957]
[1641219770179,0.00036515,47104.0,47102.0,0.03431625]
[1641219770479,0.0003469,47103.0,47102.0,0.02653957]
[1641219770681,0.0003469,47103.0,47102.0,0.07653957]
[1641219770877,0.0003469,47103.0,47102.0,0.02653957]
[1641219771077,0.0003469,47103.0,47102.0,0.12961957]
[1641219771277,0.0003469,47103.0,47102.0,0.12653957]
[1641219771678,0.0003469,47103.0,47102.0,0.07653957]
[1641219771878,0.0003469,47103.0,47102.0,0.12653957]
[1641219772333,0.0003469,47103.0,47102.0,0.12777451]
[1641219772532,0.0003469,47103.0,47102.0,0.18084751]
[1641219772932,0.0003469,47103.0,47102.0,0.12777451]
[1641219773732,0.0397469,47110.0,47105.0,0.28354371]
[1641219773931,0.0397469,47110.0,47106.0,0.07961399]
[1641219774131,0.15,47107.0,47106.0,0.07961399]
[1641219774333,0.15,47107.0,47106.0,0.12961399]
[1641219774531,0.15007303,47107.0,47106.0,0.17961399]
[1641219774933,7.303e-05,47107.0,47106.0,0.17961399]
[1641219777595,7.303e-05,47107.0,47106.0,0.38961399]
[1641219780534,7.303e-05,47107.0,47106.0,0.38975345]
[1641219781138,0.40017303,47111.0,47108.0,0.05]
[1641219781336,0.345816,47110.0,47108.0,0.05]
[1641219783235,0.40017303,47111.0,47108.0,0.05]
[1641219783438,0.60017441,47113.0,47109.0,0.053073]
[1641219783675,0.345816,47112.0,47108.0,0.1]
[1641219783975,0.34590729,47112.0,47108.0,0.1]
[1641219784477,0.34590729,47112.0,47110.0,0.053073]
[1641219785074,0.34590729,47112.0,47108.0,0.1]
[1641219786078,0.34590729,47112.0,47109.0,0.05]
[1641219786274,0.76590729,47112.0,47109.0,0.05]
[1641219786676,1.05152202,47111.0,47106.0,0.31013946]
[1641219791195,1.05152202,47111.0,47109.0,0.00697716]
[1641219791399,0.345816,47110.0,47106.0,0.31734591]